[Event "1000GM Schev-C January 2024"]
[Site "Sunnyvale"]
[Date "2024.01.21"]
[Round "2.4"]
[White "Yang, Maxwell"]
[Black "Vasquez Ramirez, Rocio"]
[Result "1/2-1/2"]
[ECO "D37"]
[WhiteElo "1946"]
[BlackElo "1999"]
[Annotator "NA RC"]
[PlyCount "224"]
[EventDate "2024.01.20"]
[EventType "schev"]
[EventCountry "USA"]
[SourceTitle "playchess.com"]
[Source "ChessBase"]
[SourceQuality "1"]
[TimeControl "5400+30"]

1. d4 {[%emt 1:31:00]} e6 {[%emt 0:04:06]} 2. c4 {[%emt 0:00:00]} Nf6 {[%emt 0:00:09]} 3. Nc3 {[%emt 0:00:00]} d5 {[%emt 0:00:28]} 4. Nf3 {[%emt 0:00:00]} a6 {[%emt 0:00:28]} 5. cxd5 {[%emt 0:00:00]} exd5 {[%emt 0:00:02]} 6. Bg5 {[%emt 0:00:00]} Be7 {[%emt 0:00:05]} 7. e3 {[%emt 0:00:00]} O-O {[%emt 0:00:21]} 8. Bd3 {[%emt 0:00:00]} Bg4 {[%emt 0:00:29]} 9. h3 {[%emt 0:00:00]} Be6 {[%emt 0:02:27]} 10. O-O {[%emt 0:00:00]} Nbd7 {[%emt 0:00:17]} 11. Qc2 {[%emt 0:00:00]} h6 {[%emt 0:00:13]} 12. Bh4 {[%emt 0:00:00]} c5 {[%emt 0:01:09]} 13. dxc5 {[%emt 0:00:00]} Nxc5 {[%emt 0:00:17]} 14. Nd4 {[%emt 0:00:00]} Rc8 {[%emt 0:05:54]} 15. Rfd1 {[%emt 0:00:00]} Nfe4 {[%emt 0:03:43]} 16. Bxe7 {[%emt 0:00:00]} Qxe7 {[%emt 0:00:03]} 17. Nxe4 {[%emt 0:00:00]} dxe4 {[%emt 0:01:40]} ({But not} 17... Nxe4 18. Qa4 $14) 18. Bc4 {[%emt 0:00:00]} Bxh3 {[%emt 0:36:08]} 19. gxh3 {[%emt 0:00:00]} Nd3 {[%emt 0:00:11]} 20. Qb3 {[%emt 0:00:00]} Qg5+ {[%emt 0:01:31]} 21. Kf1 {[%emt 0:00:00]} Nc5 {[%emt 0:05:03]} 22. Qb4 {[%emt 0:00:00]} b5 {[%emt 0:11:21]} 23. Be2 {[%emt 0:00:00]} f5 {[%emt 0:00:02]} 24. Rac1 {[%emt 0:00:00]} f4 {[%emt 0:20:08]} 25. Rxc5 {[%emt 0:00:00]} Qxc5 {[%emt 0:00:02]} 26. Qxc5 {[%emt 0:00:00]} Rxc5 {[%emt 0:00:02]} 27. Ne6 {[%emt 0:00:00]} Rc2 {[%emt 0:00:14]} 28. Nxf8 {[%emt 0:00:00]} f3 {[%emt 0:00:04]} 29. Bxf3 {[%emt 0:00:00]} exf3 {[%emt 0:00:02]} 30. Nd7 {[%emt 0:00:00]} Rxb2 {[%emt 0:00:18]} 31. Ne5 {[%emt 0:00:00]} Rxa2 {[%emt 0:00:10]} 32. Nxf3 {[%emt 0:00:00]} b4 {[%emt 0:00:21]} 33. Rb1 {[%emt 0:00:00]} a5 {[%emt 0:00:08]} 34. Nd4 {[%emt 0:00:00]} Kf7 {[%emt 0:02:09]} 35. Rc1 {[%emt 0:00:00]} a4 {[%emt 0:00:44]} 36. Rb1 {[%emt 0:00:00]} b3 {[%emt 0:00:18]} 37. Ke1 {[%emt 0:00:00]} g5 {[%emt 0:00:59]} 38. Ne2 {[%emt 0:00:00]} Rc2 {[%emt 0:01:21]} 39. Nd4 {[%emt 0:00:00]} Ra2 {[%emt 0:00:31]} 40. Nc6 {[%emt 0:00:00]} Rc2 {[%emt 0:00:28]} 41. Nb4 {[%emt 0:00:00]} Rc4 {[%emt 0:00:29]} 42. Nd3 {[%emt 0:00:00]} Rc3 {[%emt 0:01:27]} 43. Kd2 {[%emt 0:00:00]} Rc2+ {[%emt 0:00:07]} 44. Kd1 {[%emt 0:00:00]} Rc3 {[%emt 0:00:44]} 45. Nc1 {[%emt 0:00:00]} Rc2 {[%emt 0:00:08]} 46. Ne2 {[%emt 0:00:00]} Ra2 {[%emt 0:01:56]} 47. Ke1 {[%emt 0:00:00]} Rc2 {[%emt 0:01:09]} 48. Nd4 {[%emt 0:00:00]} Ra2 {[%emt 0:00:53]} 49. Kf1 {[%emt 0:00:00]} Kf6 {[%emt 0:01:09]} 50. Kg2 {[%emt 0:00:00]} Rd2 {[%emt 0:00:36]} 51. Nxb3 {[%emt 0:01:11]} axb3 {[%emt 0:00:03]} 52. Rxb3 {[%emt 0:00:09]} h5 $1 {[%emt 0:00:55]} 53. Rb5 {[%emt 0:02:27]} h4 {[%emt 0:00:52]} 54. Kf3 {[%emt 0:00:22]} Rd1 {[%emt 0:00:16]} 55. Rb6+ {[%emt 0:08:43]} Ke5 {[%emt 0:00:52]} 56. Kg4 {[%emt 0:01:59]} Rg1+ {[%emt 0:00:03]} 57. Kh5 {[%emt 0:00:06]} Rg2 {[%emt 0:00:13]} 58. Rb5+ {[%emt 0:08:07]} Kf6 {[%emt 0:02:24]} ({Better is} 58... Ke4) 59. f4 {[%emt 0:00:35]} gxf4 {[%emt 0:00:03]} 60. exf4 {[%emt 0:00:05]} Rf2 {[%emt 0:00:30]} 61. Kg4 {[%emt 0:00:14]} Kg6 {[%emt 0:02:05]} 62. Rb6+ {[%emt 0:06:32]} Kg7 {[%emt 0:00:00]} 63. Rc6 {[%emt 0:00:00]} ({And not} 63. Kxh4 Rxf4+ 64. Kg5 Rf3 $11) 63... Rf1 {[%emt 0:00:00]} 64. Kg5 {[%emt 0:00:00]} Rf3 {[%emt 0:00:00]} 65. Rc7+ {[%emt 0:00:00]} Kf8 {[%emt 0:00:00] [#]} (65... Kg8 $16) 66. Kg4 $1 {[%emt 0:00:00]} ({Not} 66. Kxh4 Rxf4+ 67. Kg5 Rf7 $11) 66... Rf1 {[%emt 0:00:00]} 67. Rh7 {[%emt 0:00:00]} Kg8 {[%emt 0:00:31]} 68. Rxh4 {[%emt 0:00:00]} Kg7 {[%emt 0:00:01]} 69. Kg5 {[%emt 0:00:00]} Rf3 {[%emt 0:00:59]} 70. Kf5 {[%emt 0:00:00]} Ra3 {[%emt 0:00:38]} 71. Rh5 {[%emt 0:00:00]} Ra5+ {[%emt 0:00:19]} 72. Kg4 {[%emt 0:00:00]} Ra1 {[%emt 0:00:05]} 73. Rb5 {[%emt 0:00:00]} Rg1+ {[%emt 0:00:11]} 74. Kf5 {[%emt 0:00:00]} Rg3 {[%emt 0:00:47]} 75. h4 {[%emt 0:00:00]} Rh3 {[%emt 0:00:34]} 76. Rb7+ {[%emt 0:00:22]} Kh6 {[%emt 0:00:13]} 77. Kg4 {[%emt 0:00:26]} Rh1 {[%emt 0:00:02]} 78. Rb6+ {[%emt 0:00:04]} Kg7 {[%emt 0:00:02]} 79. Rb3 {[%emt 0:03:24]} Kf6 {[%emt 0:00:46]} 80. Rb6+ {[%emt 0:01:09]} Kg7 {[%emt 0:00:02]} 81. Kg5 {[%emt 0:00:06]} Rg1+ {[%emt 0:00:05]} 82. Kh5 {[%emt 0:00:03]} Kf7 {[%emt 0:02:28]} 83. Rb5 {[%emt 0:03:00]} Kf6 {[%emt 0:01:01]} 84. Rg5 {[%emt 0:00:22]} Rf1 {[%emt 0:00:54]} 85. Rg4 {[%emt 0:00:16]} Rh1 {[%emt 0:00:29]} 86. Rg8 {[%emt 0:00:47]} Kf7 {[%emt 0:00:17]} 87. Rg3 {[%emt 0:00:07]} Kf6 {[%emt 0:00:18]} 88. Kg4 {[%emt 0:00:20]} Rh2 {[%emt 0:00:05]} 89. h5 {[%emt 0:00:10]} Rh1 {[%emt 0:00:02]} 90. Rh3 {[%emt 0:00:15]} Rg1+ {[%emt 0:00:11]} 91. Kf3 {[%emt 0:00:07]} Rf1+ {[%emt 0:00:05]} 92. Ke3 {[%emt 0:00:14]} Re1+ {[%emt 0:00:05]} 93. Kf2 {[%emt 0:00:04]} Re7 {[%emt 0:00:56]} 94. h6 {[%emt 0:00:18]} Kg6 {[%emt 0:00:19]} 95. f5+ {[%emt 0:00:10]} Kh7 {[%emt 0:00:05]} 96. Kf3 {[%emt 0:00:05]} Re1 {[%emt 0:00:37]} 97. Kf4 {[%emt 0:00:08]} Rf1+ {[%emt 0:00:36]} 98. Kg5 {[%emt 0:00:15]} Rg1+ {[%emt 0:00:08]} 99. Kf6 {[%emt 0:00:04]} Ra1 {[%emt 0:00:37]} 100. Re3 {[%emt 0:00:05]} Rh1 {[%emt 0:00:20]} 101. Kf7 {[%emt 0:00:17]} Ra1 {[%emt 0:01:11]} 102. f6 {[%emt 0:00:51]} Ra6 {[%emt 0:00:38]} 103. Re6 {[%emt 0:00:07]} Ra8 {[%emt 0:00:20]} 104. Re7 {[%emt 0:00:57]} Kxh6 {[%emt 0:01:21]} 105. Re2 {[%emt 0:00:58]} Ra7+ {[%emt 0:00:11]} 106. Re7 {[%emt 0:01:18]} Ra6 {[%emt 0:01:40]} 107. Rd7 {[%emt 0:00:28]} Ra8 {[%emt 0:02:09]} 108. Ke6 {[%emt 0:00:32]} Ra6+ {[%emt 0:00:11]} 109. Rd6 {[%emt 0:00:56]} Ra7 {[%emt 0:00:28]} 110. Rd2 {[%emt 0:01:23]} Ra6+ {[%emt 0:00:04]} 111. Kf7 {[%emt 0:00:09]} Ra7+ $11 {[%emt 0:00:01]} 112. Ke8 {[%emt 0:00:11]} Kg6 {[%emt 0:00:26]} 1/2-1/2

[Event "1000GM Schev-C January 2024"]
[Site "Sunnyvale"]
[Date "2024.01.21"]
[Round "2.5"]
[White "Zhuge, Katherine"]
[Black "Maass Garza R, Gustavo"]
[Result "0-1"]
[ECO "C88"]
[WhiteElo "1620"]
[BlackElo "2025"]
[Annotator "RC"]
[PlyCount "116"]
[EventDate "2024.01.20"]
[EventType "schev"]
[EventCountry "USA"]
[SourceTitle "playchess.com"]
[Source "ChessBase"]
[SourceQuality "1"]
[TimeControl "5400+30"]

1. e4 {[%emt 0:00:03]} e5 {[%emt 0:05:14]} 2. Nf3 {[%emt 0:00:22]} Nc6 {[%emt 0:00:39]} 3. Bb5 {[%emt 0:00:07]} a6 {[%emt 0:00:23]} 4. Ba4 {[%emt 0:00:42]} Nf6 {[%emt 0:00:32]} 5. O-O {[%emt 0:00:50]} Be7 {[%emt 0:00:32]} 6. Re1 {[%emt 0:00:30]} b5 {[%emt 0:01:20]} 7. Bb3 {[%emt 0:00:17]} O-O {[%emt 0:01:09]} 8. a4 {[%emt 0:01:22]} Bb7 {[%emt 0:01:42]} 9. d3 {[%emt 0:01:58]} d6 {[%emt 0:00:57]} 10. Nbd2 {[%emt 0:01:24]} Na5 {[%emt 0:02:39]} 11. Ba2 {[%emt 0:00:54]} c5 {[%emt 0:04:56]} 12. Nf1 {[%emt 0:02:25]} Qc7 {[%emt 0:02:16]} 13. Ng3 {[%emt 0:03:54]} Nc6 {[%emt 0:09:05]} 14. c3 {[%emt 0:01:58]} Rab8 {[%emt 0:03:51]} 15. d4 {[%emt 0:04:14]} cxd4 {[%emt 0:02:56]} 16. cxd4 {[%emt 0:00:59]} Nb4 {[%emt 0:07:50]} 17. Bb3 {[%emt 0:03:01]} bxa4 {[%emt 0:05:29]} 18. Bxa4 {[%emt 0:03:17]} Bc6 {[%emt 0:06:17]} 19. Bxc6 {[%emt 0:04:01]} Qxc6 {[%emt 0:02:23]} 20. dxe5 {[%emt 0:03:23]} dxe5 {[%emt 0:10:19]} 21. Nxe5 {[%emt 0:01:56]} Qe6 {[%emt 0:02:07]} 22. Nf3 {[%emt 0:10:37]} Rfd8 {[%emt 0:01:57]} 23. Qe2 {[%emt 0:02:08]} Rbc8 {[%emt 0:02:18]} 24. Rb1 {[%emt 0:11:43]} Rc2 {[%emt 0:02:06]} 25. Bd2 {[%emt 0:02:46]} Nd3 {[%emt 0:00:53]} 26. Red1 {[%emt 0:04:17]} Ng4 {[%emt 0:00:40]} 27. Ne1 {[%emt 0:02:26]} Nxe1 {[%emt 0:03:41]} 28. Qxe1 {[%emt 0:07:50]} g6 {[%emt 0:07:00]} 29. h3 {[%emt 0:07:24]} Ne5 {[%emt 0:03:23]} 30. Be3 {[%emt 0:04:03]} Nd3 {[%emt 0:01:07]} 31. Qa5 {[%emt 0:02:43]} Qf6 {[%emt 0:01:44]} 32. Qa4 {[%emt 0:07:00]} Rxb2 {[%emt 0:02:20]} 33. Rxb2 {[%emt 0:01:22]} Nxb2 {[%emt 0:01:20]} 34. Rxd8+ {[%emt 0:00:04]} Bxd8 {[%emt 0:00:01]} 35. Qe8+ {[%emt 0:00:38]} Kg7 {[%emt 0:00:20]} 36. Qd7 {[%emt 0:01:51]} Bb6 {[%emt 0:01:34]} 37. e5 {[%emt 0:00:31]} Qd8 {[%emt 0:01:26]} 38. e6 {[%emt 0:00:22]} Qxd7 {[%emt 0:04:02]} 39. exd7 {[%emt 0:00:05]} Bd8 {[%emt 0:00:35]} 40. Bd4+ {[%emt 0:00:05]} Kf8 {[%emt 0:00:06]} 41. Bxb2 {[%emt 0:00:10]} f5 {[%emt 0:00:39]} 42. Kf1 {[%emt 0:02:38]} Kf7 {[%emt 0:00:08]} 43. Ke2 {[%emt 0:00:42]} Ke6 {[%emt 0:00:01]} 44. Kd3 {[%emt 0:00:17]} Kxd7 {[%emt 0:00:08]} 45. Kc4 {[%emt 0:00:36]} Kc6 {[%emt 0:01:08]} 46. Ne2 {[%emt 0:00:29]} Bb6 {[%emt 0:00:21]} 47. Nd4+ {[%emt 0:01:47]} Kd6 {[%emt 0:00:27]} 48. f4 {[%emt 0:00:59]} Ba5 {[%emt 0:00:44]} 49. Ba3+ {[%emt 0:00:35]} Kd7 {[%emt 0:00:02]} 50. Kd5 {[%emt 0:00:15]} Bd2 {[%emt 0:00:07]} 51. Ne6 {[%emt 0:00:29]} a5 {[%emt 0:00:33]} 52. Bd6 {[%emt 0:00:20]} Ke8 {[%emt 0:00:30]} 53. Kc6 {[%emt 0:00:50]} h6 {[%emt 0:00:44]} 54. Kb5 {[%emt 0:00:23]} Kd7 {[%emt 0:00:22]} 55. Bf8 {[%emt 0:00:36]} Kxe6 {[%emt 0:00:07]} 56. Bxh6 {[%emt 0:00:07]} Kd5 {[%emt 0:00:14]} 57. g4 {[%emt 0:00:40]} Ke4 {[%emt 0:00:12]} 58. g5 {[%emt 0:01:12]} Kxf4 {[%emt 0:00:15]} 0-1

[Event "1000GM Schev-C January 2024"]
[Site "Sunnyvale"]
[Date "2024.01.21"]
[Round "3.1"]
[White "Pulijala, Akshaj"]
[Black "Winslow, Elliott"]
[Result "1/2-1/2"]
[ECO "B09"]
[WhiteElo "1597"]
[BlackElo "1994"]
[Annotator "RC"]
[PlyCount "117"]
[EventDate "2024.01.20"]
[EventType "schev"]
[EventCountry "USA"]
[SourceTitle "playchess.com"]
[Source "ChessBase"]
[SourceQuality "1"]
[TimeControl "5400+30"]

1. d4 {[%emt 0:00:05]} Nf6 {[%emt 0:02:23]} 2. Nc3 {[%emt 0:00:07]} g6 {[%emt 0:00:40]} 3. e4 {[%emt 0:00:11]} d6 {[%emt 0:00:14]} 4. f4 {[%emt 1:32:07]} Bg7 {[%emt 0:00:25]} 5. Nf3 {[%emt 0:00:00]} O-O {[%emt 0:01:08]} 6. Bd3 {[%emt 0:00:00]} Na6 {[%emt 0:00:48]} 7. a3 {[%emt 0:00:00]} c5 {[%emt 0:01:04]} 8. d5 {[%emt 0:00:00]} Nc7 {[%emt 0:05:24]} 9. a4 {[%emt 0:00:00]} e6 {[%emt 0:01:31]} 10. dxe6 {[%emt 0:00:00]} fxe6 {[%emt 0:01:39]} 11. O-O {[%emt 0:00:00]} d5 {[%emt 0:04:33]} 12. e5 {[%emt 0:00:00]} Nd7 {[%emt 0:03:03]} 13. b3 {[%emt 0:00:00]} Qe7 {[%emt 0:00:56]} 14. g3 {[%emt 0:00:00]} Rd8 {[%emt 0:03:34]} 15. Kg2 {[%emt 0:00:00]} b6 {[%emt 0:04:21]} 16. Qe2 {[%emt 0:00:00]} Bb7 {[%emt 0:03:19]} 17. Nd1 {[%emt 0:00:00]} a6 {[%emt 0:04:37]} 18. c4 {[%emt 0:00:00]} Nb8 {[%emt 0:00:35]} 19. cxd5 {[%emt 0:00:00]} Nxd5 {[%emt 0:02:54]} 20. Bc4 {[%emt 0:00:00]} Nc6 {[%emt 0:01:59]} 21. Kg1 {[%emt 0:00:00]} Na5 {[%emt 0:03:04]} 22. Ne3 {[%emt 0:00:00]} Nxe3 {[%emt 0:09:13]} 23. Bxe3 {[%emt 0:00:00]} Nxc4 {[%emt 0:01:16]} 24. bxc4 {[%emt 0:00:00]} Rab8 {[%emt 0:02:24]} 25. Rfb1 {[%emt 0:00:00]} Qc7 {[%emt 0:00:51]} 26. Ng5 {[%emt 0:00:00]} Qc6 {[%emt 0:04:06]} 27. Kf2 {[%emt 0:00:00]} h6 {[%emt 0:01:30]} 28. Nf3 {[%emt 0:00:00]} Rf8 {[%emt 0:00:58]} 29. Rg1 {[%emt 0:00:00]} Rbd8 {[%emt 0:07:20]} 30. a5 {[%emt 0:00:00]} b5 {[%emt 0:01:44]} 31. cxb5 {[%emt 0:00:00]} axb5 {[%emt 0:00:09]} 32. Rac1 {[%emt 0:00:00]} c4 {[%emt 0:05:43]} 33. Nd4 {[%emt 0:00:00]} Qa6 {[%emt 0:02:08]} 34. Qg4 {[%emt 0:00:00]} Rxd4 {[%emt 0:01:10]} 35. Bxd4 {[%emt 0:15:30]} Kh7 {[%emt 0:00:21]} 36. Bb6 {[%emt 0:00:00]} Bd5 {[%emt 0:02:14]} 37. Rgd1 {[%emt 0:00:00]} Qb7 {[%emt 0:01:45]} 38. Qe2 {[%emt 0:00:00]} g5 {[%emt 0:05:03]} 39. Qe3 {[%emt 0:00:00]} gxf4 {[%emt 0:04:51]} 40. gxf4 {[%emt 0:00:00]} Qe7 {[%emt 0:00:26]} 41. Ke2 {[%emt 0:00:00]} Qh4 {[%emt 0:01:29]} 42. Rf1 {[%emt 0:00:00]} b4 {[%emt 0:03:06]} 43. Rf2 {[%emt 0:00:00]} Rf7 {[%emt 0:01:46]} 44. a6 {[%emt 0:00:00]} c3 {[%emt 0:00:46]} 45. Qd3+ {[%emt 0:00:00]} Kh8 {[%emt 0:00:50]} 46. a7 {[%emt 0:00:00]} Ba8 {[%emt 0:00:44]} 47. Qg6 {[%emt 0:00:00]} Qe7 {[%emt 0:00:49]} 48. Rd1 {[%emt 0:00:00]} b3 {[%emt 0:00:45]} 49. Rd8+ {[%emt 0:00:00]} Rf8 {[%emt 0:00:17]} 50. Rxf8+ {[%emt 0:00:12]} Bxf8 {[%emt 0:00:28]} 51. Qd3 {[%emt 0:04:11]} b2 {[%emt 0:00:31]} 52. Rf1 {[%emt 0:01:24]} Qb7 {[%emt 0:01:14]} 53. Bd4 {[%emt 0:01:05]} Qg2+ {[%emt 0:00:33]} 54. Ke3 {[%emt 0:00:44]} Bb4 {[%emt 0:00:50]} 55. Bxc3 {[%emt 0:00:48]} Qh3+ {[%emt 0:01:35]} 56. Ke2 {[%emt 0:00:54]} Qxh2+ {[%emt 0:00:08]} 57. Kd1 {[%emt 0:00:52]} Bxc3 {[%emt 0:00:31]} 58. Qd8+ {[%emt 0:00:26]} Kg7 {[%emt 0:00:05]} 59. Qe7+ {[%emt 0:00:13]} 1/2-1/2

[Event "1000GM Schev-C January 2024"]
[Site "Sunnyvale"]
[Date "2024.01.21"]
[Round "3.2"]
[White "Qi, Jenny"]
[Black "Palao, Adriana"]
[Result "1/2-1/2"]
[ECO "C41"]
[WhiteElo "1605"]
[BlackElo "1978"]
[Annotator "RC"]
[PlyCount "101"]
[EventDate "2024.01.20"]
[EventType "schev"]
[EventCountry "USA"]
[SourceTitle "playchess.com"]
[Source "ChessBase"]
[SourceQuality "1"]
[TimeControl "5400+30"]

1. e4 {[%emt 0:01:17]} e5 {[%emt 0:01:51]} 2. Nf3 {[%emt 0:00:10]} d6 {[%emt 0:00:04]} 3. d4 {[%emt 0:01:37]} Nd7 {[%emt 0:00:06]} 4. Nc3 {[%emt 0:01:49]} c6 {[%emt 0:00:07]} 5. Be2 {[%emt 0:04:43]} Ngf6 {[%emt 0:00:17]} 6. O-O {[%emt 0:01:44]} Be7 {[%emt 0:00:06]} 7. h3 {[%emt 0:01:04]} O-O {[%emt 0:00:59]} 8. Be3 {[%emt 0:02:08]} b5 {[%emt 0:01:24]} 9. a3 {[%emt 0:01:43]} Qc7 {[%emt 0:00:58]} 10. d5 {[%emt 0:02:44]} Bb7 {[%emt 0:02:10]} 11. Nh4 {[%emt 0:25:47]} Nxe4 {[%emt 0:08:32]} 12. Nxe4 {[%emt 0:01:55]} Bxh4 {[%emt 0:00:11]} 13. dxc6 {[%emt 0:01:28]} Qxc6 {[%emt 0:04:51]} 14. Qxd6 {[%emt 0:10:53]} Qxc2 {[%emt 0:08:59]} 15. Qxd7 {[%emt 0:07:14]} Bxe4 {[%emt 0:00:16]} 16. Qg4 {[%emt 0:05:39]} f5 {[%emt 0:04:42]} 17. Qxh4 {[%emt 0:03:24]} Qxe2 {[%emt 0:00:11]} 18. Bc5 {[%emt 0:01:16]} Rf6 {[%emt 0:01:52]} 19. f3 {[%emt 0:02:42]} Bc6 {[%emt 0:07:01]} 20. Qf2 {[%emt 0:03:59]} Qxf2+ {[%emt 0:02:08]} 21. Rxf2 {[%emt 0:00:54]} Kf7 {[%emt 0:01:13]} 22. Rd1 {[%emt 0:01:21]} a6 {[%emt 0:02:05]} 23. Rd6 {[%emt 0:01:54]} Rxd6 {[%emt 0:00:23]} 24. Bxd6 {[%emt 0:00:06]} Ke6 {[%emt 0:00:11]} 25. Bb4 {[%emt 0:01:39]} Rd8 {[%emt 0:04:25]} 26. Rd2 {[%emt 0:01:01]} Rxd2 {[%emt 0:00:07]} 27. Bxd2 {[%emt 0:00:06]} e4 {[%emt 0:01:27]} 28. fxe4 {[%emt 0:00:39]} fxe4 {[%emt 0:01:08]} 29. Kf2 {[%emt 0:00:10]} Kf5 {[%emt 0:00:14]} 30. Ke3 {[%emt 0:00:38]} h5 {[%emt 0:02:45]} 31. Bc3 {[%emt 0:00:32]} g5 {[%emt 0:00:47]} 32. Bb4 {[%emt 0:00:15]} h4 {[%emt 0:02:17]} 33. Be7 {[%emt 0:00:14]} Bd5 {[%emt 0:00:14]} 34. Bd8 {[%emt 0:00:39]} Bc4 {[%emt 0:01:07]} 35. Be7 {[%emt 0:00:06]} Bd3 {[%emt 0:01:07]} 36. Bd8 {[%emt 0:00:23]} Kg6 {[%emt 0:00:07]} 37. Be7 {[%emt 0:07:13]} Kh5 {[%emt 0:00:12]} 38. Bd8 {[%emt 0:00:22]} g4 {[%emt 0:00:20]} 39. hxg4+ {[%emt 0:00:29]} Kxg4 {[%emt 0:00:06]} 40. Bc7 {[%emt 0:00:06]} Bc4 {[%emt 0:01:48]} 41. Kxe4 {[%emt 0:00:23]} Bf1 {[%emt 0:00:08]} 42. Ke3 {[%emt 0:00:10]} Bxg2 {[%emt 0:00:08]} 43. Kf2 {[%emt 0:00:09]} h3 {[%emt 0:02:39]} 44. Kg1 {[%emt 0:00:06]} Kf3 {[%emt 0:00:03]} 45. Be5 {[%emt 0:00:28]} Ke4 {[%emt 0:00:13]} 46. Bh8 {[%emt 0:00:07]} Kf4 {[%emt 0:02:11]} 47. Kh2 {[%emt 0:00:07]} Kf3 {[%emt 0:01:00]} 48. Bg7 {[%emt 0:00:07]} Kf4 {[%emt 0:00:04]} 49. Bh8 {[%emt 0:00:05]} Kf3 {[%emt 0:00:03]} 50. Bg7 {[%emt 0:00:07]} Kf4 {[%emt 0:00:03]} 51. Bh8 {[%emt 0:12:08]} 1/2-1/2

[Event "1000GM Schev-C January 2024"]
[Site "Sunnyvale"]
[Date "2024.01.21"]
[Round "3.3"]
[White "Vasquez Ramirez, Rocio"]
[Black "Yuan, Serena"]
[Result "0-1"]
[ECO "D37"]
[WhiteElo "1999"]
[BlackElo "1771"]
[Annotator "RC"]
[PlyCount "130"]
[EventDate "2024.01.20"]
[EventType "schev"]
[EventCountry "USA"]
[SourceTitle "playchess.com"]
[Source "ChessBase"]
[SourceQuality "1"]
[TimeControl "5400+30"]

1. d4 {[%emt 0:00:55]} d5 {[%emt 0:00:20]} 2. c4 {[%emt 0:00:05]} e6 {[%emt 0:00:06]} 3. Nc3 {[%emt 0:00:05]} Nf6 {[%emt 0:00:09]} 4. e3 {[%emt 0:00:20]} Be7 {[%emt 0:00:10]} 5. Nf3 {[%emt 0:00:08]} O-O {[%emt 0:00:08]} 6. Be2 {[%emt 0:00:08]} dxc4 {[%emt 0:00:47]} 7. Bxc4 {[%emt 0:00:02]} a6 {[%emt 0:01:02]} 8. a4 {[%emt 0:02:49]} b6 {[%emt 0:02:26]} 9. O-O {[%emt 0:18:23]} Bb7 {[%emt 0:03:24]} 10. Qe2 {[%emt 0:01:54]} c5 {[%emt 0:02:17]} 11. Rd1 {[%emt 0:00:40]} Qc7 {[%emt 0:00:24]} 12. b3 {[%emt 0:02:36]} Rd8 {[%emt 0:04:57]} 13. Bb2 {[%emt 0:00:24]} Nc6 {[%emt 0:03:18]} 14. d5 {[%emt 1:09:01]} exd5 {[%emt 0:10:04]} 15. Nxd5 {[%emt 0:00:00]} Nxd5 {[%emt 0:00:12]} 16. Bxd5 {[%emt 0:00:00]} Na5 {[%emt 0:04:06]} 17. Be5 {[%emt 0:00:00]} Qc8 {[%emt 0:02:30]} 18. Bxb7 {[%emt 0:00:00]} Qxb7 {[%emt 0:00:18]} 19. Qb2 {[%emt 0:00:00]} f6 {[%emt 0:02:41]} 20. Bc3 {[%emt 0:00:00]} Nc6 {[%emt 0:00:45]} 21. Qc2 {[%emt 0:00:00]} b5 {[%emt 0:17:43]} 22. Qe4 {[%emt 0:00:00]} b4 {[%emt 0:03:31]} 23. Qe6+ {[%emt 0:00:00]} Kh8 {[%emt 0:02:22]} 24. Bb2 {[%emt 0:00:00]} Qc7 {[%emt 0:04:09]} 25. h4 {[%emt 0:00:00]} Rd6 {[%emt 0:04:53]} 26. Qf7 {[%emt 0:00:00]} Rf8 {[%emt 0:03:07]} 27. Qc4 {[%emt 0:00:00]} Na5 {[%emt 0:02:15]} 28. Qc2 {[%emt 0:00:00]} Rfd8 {[%emt 0:01:14]} 29. Rxd6 {[%emt 0:00:00]} Qxd6 {[%emt 0:00:51]} 30. e4 {[%emt 0:01:54]} Qd3 {[%emt 0:01:32]} 31. Qxd3 {[%emt 0:00:02]} Rxd3 {[%emt 0:00:02]} 32. e5 {[%emt 0:00:01]} Rxb3 {[%emt 0:02:51]} 33. exf6 {[%emt 0:00:20]} Bxf6 {[%emt 0:00:49]} 34. Re1 {[%emt 0:00:28]} Kg8 {[%emt 0:02:25]} 35. Bxf6 {[%emt 0:00:40]} gxf6 {[%emt 0:00:02]} 36. Re6 {[%emt 0:00:11]} c4 {[%emt 0:05:08]} 37. Rxa6 {[%emt 0:01:13]} c3 {[%emt 0:00:22]} 38. Nd4 {[%emt 0:00:11]} Rb1+ {[%emt 0:00:48]} 39. Kh2 {[%emt 0:00:01]} Nb3 {[%emt 0:02:07]} 40. Ra8+ {[%emt 0:01:26]} Kf7 {[%emt 0:01:28]} 41. Ra7+ {[%emt 0:00:08]} Kg6 {[%emt 0:01:42]} 42. Ne6 {[%emt 0:01:42]} Kf5 {[%emt 0:02:43]} 43. Ng7+ {[%emt 0:00:31]} Ke4 {[%emt 0:01:31]} 44. Re7+ {[%emt 0:01:17]} Kd5 {[%emt 0:00:53]} 45. Rd7+ {[%emt 0:00:40]} Kc6 {[%emt 0:00:34]} 46. Rd8 {[%emt 0:00:02]} Nc5 {[%emt 0:01:53]} 47. Rc8+ {[%emt 0:00:01]} Kb6 {[%emt 0:00:47]} 48. a5+ {[%emt 0:00:03]} Kb5 {[%emt 0:00:20]} 49. Nf5 {[%emt 0:00:06]} b3 {[%emt 0:01:40]} 50. a6 {[%emt 0:03:39]} Nxa6 {[%emt 0:05:08]} 51. Rxc3 {[%emt 0:01:28]} b2 {[%emt 0:00:24]} 52. Nd4+ {[%emt 0:00:59]} Kb4 {[%emt 0:00:27]} 53. Rc6 {[%emt 0:00:06]} Ra1 {[%emt 0:00:36]} 54. Nc2+ {[%emt 0:01:15]} Kb5 {[%emt 0:00:34]} 55. Nd4+ {[%emt 0:00:01]} Ka5 {[%emt 0:00:30]} 56. Nb3+ {[%emt 0:00:09]} Kb4 {[%emt 0:00:32]} 57. Rb6+ {[%emt 0:00:01]} Kc3 {[%emt 0:01:03]} 58. Nxa1 {[%emt 0:01:19]} bxa1=Q {[%emt 0:00:00]} 59. Rxf6 {[%emt 0:00:03]} Kd3 {[%emt 0:00:00]} 60. Rf7 {[%emt 0:01:10]} Qe5+ {[%emt 0:00:29]} 61. f4 {[%emt 0:00:02]} Qh5 {[%emt 0:00:45]} 62. Rd7+ {[%emt 0:00:02]} Ke3 {[%emt 0:00:28]} 63. Re7+ {[%emt 0:01:45]} Kf2 {[%emt 0:00:20]} 64. Kh3 {[%emt 0:00:26]} Qf5+ {[%emt 0:00:13]} 65. g4 {[%emt 0:00:16]} Qd3+ {[%emt 0:00:38]} 0-1